bitfinex/quotes_ETHUSD_20230905
["timestamp","ask_amount","ask_price","bid_price","bid_amount"]
[1693940476250,0.101,1638.4,1638.3,37.09939681]
[1693940476450,0.101,1638.4,1638.3,39.22102788]
[1693940476653,0.101,1638.4,1638.3,39.22103222]
[1693940477174,0.101,1638.4,1638.3,39.22103915]
[1693940478577,0.101,1638.4,1638.3,38.58491711]
[1693940478877,0.101,1638.4,1638.3,39.22012801]
[1693940479184,0.101,1638.6,1638.3,38.58491711]
[1693940479494,0.101,1638.6,1638.5,12.20628]
[1693940479699,0.101,1638.6,1638.5,18.26720883]
[1693940482155,0.101,1638.6,1638.5,19.85844523]
[1693940482380,0.101,1638.6,1638.5,19.8584457]
[1693940484681,0.101,1638.6,1638.5,20.29817951]
[1693940488896,0.101,1638.6,1638.5,20.93326801]
[1693940490601,0.101,1638.6,1638.5,27.03640801]
[1693940491200,0.101,1638.6,1638.5,28.35740801]
[1693940491401,0.101,1638.6,1638.5,31.62845045]
[1693940491895,4.0093,1638.7,1638.5,31.62845045]
[1693940492068,4.0093,1638.7,1638.6,2.6521657]
[1693940492272,4.0093,1638.7,1638.6,25.9604757]
[1693940492464,0.10474233,1638.7,1638.6,25.9604757]
[1693940495270,0.10474233,1638.7,1638.6,26.5955642]
[1693940495489,0.10474233,1638.7,1638.6,20.4927942]
[1693940498204,0.10474233,1638.7,1638.6,21.44691747]
[1693940498804,2.23631816,1638.8,1638.6,21.44691747]
[1693940498805,1.70458124,1638.8,1638.6,21.44691747]
[1693940498982,1.70458124,1638.8,1638.7,1.06092883]
[1693940499186,0.57306513,1638.8,1638.7,7.79840733]
[1693940499505,0.57667131,1638.8,1638.7,7.79840733]
[1693940499699,0.57667131,1638.8,1638.7,8.23798228]
[1693940499909,0.57667131,1638.8,1638.7,7.60289378]
[1693940500275,0.57667131,1638.8,1638.7,8.23798228]
[1693940503238,0.57667131,1638.8,1638.7,9.19210555]
[1693940504238,0.57667131,1638.8,1638.7,8.55701705]
[1693940506356,0.57667131,1638.8,1638.7,9.19408933]
[1693940508061,0.57667131,1638.8,1638.7,8.23996606]
[1693940508980,0.57667131,1638.8,1638.7,12.15078608]
[1693940509115,0.57667131,1638.8,1638.7,20.21128968]
[1693940509317,0.57667131,1638.8,1638.7,26.16688867]
[1693940509518,0.57667131,1638.8,1638.7,26.16693023]
[1693940510257,0.57667131,1638.8,1638.7,24.8896944]
[1693940510810,0.57667131,1638.8,1638.7,23.5686944]
[1693940511044,0.57667131,1638.8,1638.7,15.1497712]
[1693940511244,0.57667131,1638.8,1638.7,13.24008679]
[1693940513549,0.57667131,1638.8,1638.7,32.47123283]
[1693940513734,0.57667131,1638.8,1638.7,35.9085255]
[1693940513935,0.00360618,1638.8,1638.7,36.51959769]
[1693940514240,0.00360618,1638.8,1638.7,42.15329643]
[1693940514549,0.101,1639.0,1638.7,42.15329643]
[1693940514764,0.101,1639.0,1638.9,1.59243052]
[1693940514958,0.101,1639.0,1638.9,10.72037361]
[1693940515139,0.101,1639.0,1638.9,20.49243791]
[1693940515539,0.10433044,1639.0,1638.9,20.49243791]
[1693940517368,0.10433044,1639.0,1638.9,19.8554657]
[1693940518331,0.10433044,1639.0,1638.9,13.7538157]
[1693940518535,0.10433044,1639.0,1638.9,19.8554657]
[1693940519447,0.10433044,1639.0,1638.9,19.85508758]
[1693940520039,0.10433044,1639.0,1638.9,18.26422883]
[1693940521773,0.00333044,1639.0,1638.9,18.26422883]
[1693940522263,0.00333044,1639.0,1638.9,17.2033]
[1693940529895,0.00333044,1639.0,1638.9,17.64142865]
[1693940531264,0.41154623,1639.0,1638.9,5.43812865]
[1693940531470,0.41154623,1639.0,1638.9,11.53977865]
[1693940531667,0.00333044,1639.0,1638.9,11.53977865]
[1693940532566,0.00333044,1639.0,1638.9,17.64142865]
[1693940541097,0.00333044,1639.0,1638.9,23.74307865]
[1693940543209,0.00333044,1639.0,1638.9,30.78231273]
[1693940543615,0.00333044,1639.0,1638.9,34.58214204]
[1693940544813,0.00333044,1639.0,1638.9,32.99142379]
[1693940545339,0.00333044,1639.0,1638.9,34.58215603]
[1693940553430,0.00333044,1639.0,1638.9,35.21912824]
[1693940553625,0.00333044,1639.0,1638.9,34.58215603]
[1693940554300,0.00333044,1639.0,1638.9,35.21912824]
[1693940563261,0.00333044,1639.0,1638.9,34.58215603]
[1693940574342,0.00333044,1639.0,1638.9,34.58214995]
[1693940574875,0.00333044,1639.0,1638.9,28.48049995]
[1693940575052,0.00333044,1639.0,1638.9,23.35967064]
[1693940575677,0.00333044,1639.0,1638.9,24.68067064]
[1693940582296,0.00333044,1639.0,1638.9,25.31764285]
[1693940584791,0.00333044,1639.0,1638.9,23.99664285]
[1693940591692,0.00333044,1639.0,1638.9,8.72632859]
[1693940591894,1.02956322,1639.0,1638.9,7.13559195]
[1693940592217,1.02956322,1639.0,1638.9,6.49861974]
[1693940593876,1.02956322,1639.0,1638.9,12.60026974]
[1693940596881,1.02956322,1639.0,1638.9,6.49861974]
[1693940596882,0.00333044,1639.0,1638.9,6.49861974]
[1693940597900,0.00333044,1639.0,1638.9,5.43812865]
[1693940600412,0.00333044,1639.0,1638.9,11.53977865]
[1693940601477,12.20589044,1639.0,1638.9,5.43812865]
[1693940601712,20.55365922,1639.0,1638.9,5.43812865]
[1693940601911,21.87465922,1639.0,1638.9,5.43812865]
[1693940602300,21.87465922,1639.0,1638.9,2.86455156]
[1693940602504,21.87465922,1639.0,1638.9,0.72910312]
[1693940602683,21.87465922,1639.0,1638.9,1.10104584]
[1693940603084,7.86595572,1638.7,1638.5,7.69554052]
[1693940603280,9.26276329,1638.7,1638.6,6.06069223]
[1693940603712,9.26276329,1638.7,1638.6,1.06069223]
[1693940604489,9.2660704,1638.7,1638.6,1.06069223]
[1693940604813,9.2660704,1638.7,1638.6,1.42188952]
[1693940607827,15.3685204,1638.7,1638.6,1.42188952]
[1693940612035,15.3685204,1638.7,1638.6,0.36119729]
[1693940612502,15.3685204,1638.7,1638.4,13.79893052]
[1693940612703,15.3685204,1638.7,1638.5,1.06070116]
[1693940613003,1.53685204,1638.6,1638.5,7.16383116]
[1693940613325,9.2660704,1638.7,1638.5,7.16383116]
[1693940613521,0.00329933,1638.6,1638.5,6.10313]
[1693940613727,0.00329933,1638.6,1638.5,7.16383283]
[1693940619922,0.00329933,1638.6,1638.5,7.52511]
[1693940636370,0.00329933,1638.6,1638.5,1.42198]
[1693940636890,1.59149484,1638.6,1638.5,1.42198]
[1693940638195,0.00329933,1638.6,1638.5,7.52512]
[1693940638562,0.00329933,1638.6,1638.5,19.7314]
[1693940638757,0.00329933,1638.6,1638.5,20.36837221]
[1693940639392,0.00329933,1638.6,1638.5,25.36837221]
[1693940639597,0.00329933,1638.6,1638.5,26.9593394]
[1693940640761,0.00329933,1638.6,1638.5,27.91479771]
[1693940642091,0.00329933,1638.6,1638.5,25.26312769]
[1693940642296,0.00329933,1638.6,1638.5,27.91485282]
[1693940643194,0.00329933,1638.6,1638.5,27.27788061]
[1693940643397,0.00329933,1638.6,1638.5,27.91673899]
[1693940643575,0.00329933,1638.6,1638.5,30.96790733]
[1693940643896,0.00329933,1638.6,1638.5,30.32904895]
[1693940647195,0.00329933,1638.6,1638.5,27.27788061]
[1693940651974,0.00329933,1638.6,1638.5,28.55182503]
[1693940654412,0.00329933,1638.6,1638.5,29.87282503]
[1693940659825,0.00329933,1638.6,1638.5,28.55182503]
[1693940664230,0.00329933,1638.6,1638.5,27.27788061]
[1693940664929,0.00329933,1638.6,1638.5,28.55182503]
[1693940665723,0.00329933,1638.6,1638.5,27.27788061]
[1693940666535,0.00329933,1638.6,1638.5,28.55182503]
[1693940667836,0.00329933,1638.6,1638.5,22.44868503]
[1693940668535,0.00329933,1638.6,1638.5,21.17474061]
[1693940668942,0.00329933,1638.6,1638.5,22.44868503]
[1693940669103,0.00329933,1638.6,1638.5,21.17474061]
[1693940669304,0.00329933,1638.6,1638.5,22.44868503]
[1693940670641,0.00329933,1638.6,1638.5,21.17474061]
[1693940673756,0.00329933,1638.6,1638.5,22.44868503]
[1693940674136,0.00329933,1638.6,1638.5,21.17474061]
[1693940674458,0.00329933,1638.6,1638.5,22.44868503]
[1693940675169,0.00329933,1638.6,1638.5,21.17474061]
[1693940678362,0.00329933,1638.6,1638.5,8.96846061]
[1693940678363,0.38022984,1638.6,1638.5,8.96846061]
[1693940678543,6.48299984,1638.6,1638.5,6.42196722]
[1693940678727,18.68853984,1638.6,1638.5,5.17917717]
[1693940679134,18.68853984,1638.6,1638.5,5.34529669]
[1693940679336,1.7908034,1638.2,1638.1,0.63949138]
[1693940679535,1.7908034,1638.2,1638.1,6.70048459]
[1693940679735,1.7908034,1638.2,1638.1,7.03506032]
[1693940680661,1.79484683,1638.2,1638.1,7.03506032]
[1693940681644,1.79484683,1638.2,1638.1,2.03506032]
[1693940682231,1.79484683,1638.2,1638.1,1.39556894]
[1693940682543,1.79484683,1638.2,1638.1,7.50019894]
[1693940686972,1.79484683,1638.2,1638.1,1.39556894]
[1693940687164,3.39404251,1638.2,1638.1,1.39556894]
[1693940688747,9.49830251,1638.2,1638.1,1.39556894]
[1693940690211,9.49830251,1638.2,1638.1,0.33457573]
[1693940690366,9.49830251,1638.2,1638.1,1.39557687]
[1693940691301,9.49830251,1638.2,1638.1,0.33457573]
[1693940691665,9.49830251,1638.2,1638.1,1.39560777]
[1693940692069,15.60256251,1638.2,1638.1,0.33457573]
[1693940692397,15.60256251,1638.2,1637.9,13.80533969]
[1693940692561,1.56025625,1638.1,1638.0,1.06104286]
[1693940692965,0.92364153,1638.1,1638.0,1.70053424]
[1693940693166,15.60256251,1638.2,1638.0,1.70053424]
[1693940694996,15.60256251,1638.2,1638.1,0.3314752]
[1693940695201,15.60256251,1638.2,1638.1,1.39251806]
[1693940698684,15.60256251,1638.2,1638.1,0.3314752]
[1693940699096,15.60256251,1638.2,1637.9,0.63949138]
[1693940699292,15.60256251,1638.2,1637.9,1.70058404]
[1693940699293,1.56025625,1638.1,1637.9,1.70058404]
[1693940699583,6.105,1638.0,1637.8,0.63949138]
[1693940699784,6.105,1638.0,1637.8,1.70065108]
[1693940699986,14.1156,1638.0,1637.8,1.70065108]
[1693940700185,7.51693,1637.9,1637.8,1.70065108]
[1693940700403,7.51693,1637.9,1637.8,0.63949138]
[1693940700616,13.62632008,1637.9,1637.8,0.63949138]
[1693940701721,7.52095008,1637.9,1637.8,0.63949138]
[1693940702109,7.52095008,1637.9,1637.8,1.70065108]
[1693940702318,6.10939008,1637.9,1637.8,1.70065108]
[1693940702822,4.97748524,1637.9,1637.8,1.70065108]
[1693940704723,4.97748524,1637.9,1637.8,2.65610939]
[1693940707148,0.00402008,1637.9,1637.8,2.65610939]
[1693940707845,0.00402008,1637.9,1637.8,21.65486801]
[1693940708051,0.00402008,1637.9,1637.8,24.42565284]
[1693940708245,0.00402008,1637.9,1637.8,26.0171545]
[1693940709709,0.00402008,1637.9,1637.8,31.3490047]
[1693940710325,0.00402008,1637.9,1637.8,32.94317952]
[1693940712448,0.00402008,1637.9,1637.8,31.6692351]
[1693940719178,0.00402008,1637.9,1637.8,30.07506028]
[1693940721741,0.00402008,1637.9,1637.8,36.2346279]
[1693940721941,0.00402008,1637.9,1637.8,38.35561246]
[1693940722541,1.00856203,1638.0,1637.8,38.35561246]
[1693940722743,1.00856203,1638.0,1637.9,6.36958539]
[1693940722943,1.00856203,1638.0,1637.9,15.35397083]
[1693940723679,1.01228061,1638.0,1637.9,15.35397083]
[1693940724186,1.01228061,1638.0,1637.9,24.87188971]
[1693940724347,1.01228061,1638.0,1637.9,26.99287427]
[1693940724679,1.01228061,1638.0,1637.9,27.32463387]
[1693940727178,1.01228061,1638.0,1637.9,21.16507794]
[1693940727485,1.01228061,1638.0,1637.9,25.20364576]
[1693940727679,1.01228061,1638.0,1637.9,27.32463032]
[1693940727908,1.01228061,1638.0,1637.9,27.32462821]
[1693940728206,1.01228061,1638.0,1637.9,21.16507794]
[1693940728402,1.01228061,1638.0,1637.9,17.80671499]
[1693940728615,1.01228061,1638.0,1637.9,15.68573043]
[1693940730309,1.01228061,1638.0,1637.9,16.96420559]
[1693940731183,1.01228061,1638.0,1637.9,15.36826612]
[1693940731379,1.01228061,1638.0,1637.9,16.68926612]
[1693940731711,1.01228061,1638.0,1637.9,39.53235343]
[1693940731908,1.01228061,1638.0,1637.9,46.56634777]
[1693940732417,0.00371858,1638.0,1637.9,46.56634777]
[1693940732622,2.13610009,1638.2,1637.9,46.56634777]
[1693940732784,2.13610009,1638.2,1638.1,2.59891275]
[1693940732984,1.49955421,1638.2,1638.1,26.73944223]
[1693940733183,1.49955421,1638.2,1638.1,28.33094389]
[1693940733402,1.49955421,1638.2,1638.1,33.33094389]
[1693940734199,1.49955421,1638.2,1638.1,34.28932657]
[1693940735215,1.49955421,1638.2,1638.1,33.01141382]
[1693940736511,1.49955421,1638.2,1638.1,33.65019209]
[1693940739501,1.49955421,1638.2,1638.1,32.69180941]
[1693940739702,1.49955421,1638.2,1638.1,33.11177645]
[1693940745908,1.49955421,1638.2,1638.1,33.6094884]
[1693940754582,1.49955421,1638.2,1638.1,14.81603667]
[1693940754872,1.49955421,1638.2,1638.1,6.48112674]
[1693940756372,1.49955421,1638.2,1638.1,12.58575674]
[1693940756573,1.49955421,1638.2,1638.1,14.1772584]
[1693940756868,1.49955421,1638.2,1638.1,15.2818884]
[1693940757238,1.49955421,1638.2,1638.1,13.69038674]
[1693940762889,1.49955421,1638.2,1638.1,7.58575674]
[1693940765427,1.49955421,1638.2,1638.1,13.69038674]
[1693940766505,1.49955421,1638.2,1638.1,20.43379501]
[1693940766805,1.49955421,1638.2,1638.1,22.02529667]
[1693940767005,1.49955421,1638.2,1638.1,27.02529667]
[1693940776926,1.49955421,1638.2,1638.1,22.02529667]
[1693940777223,1.49955421,1638.2,1638.1,20.43379501]
[1693940780928,1.49955421,1638.2,1638.1,14.32916501]
[1693940780929,1.84095963,1638.2,1638.1,14.32916501]
[1693940781428,1.84095963,1638.2,1638.1,20.43379501]
[1693940781666,1.84095963,1638.2,1638.1,14.32916501]
[1693940782640,1.84095963,1638.2,1638.1,20.43379501]
[1693940783464,1.84095963,1638.2,1638.1,14.32916501]
[1693940792788,1.49955421,1638.2,1638.1,14.32916501]
[1693940798973,1.49955421,1638.2,1638.1,13.26800531]
[1693940799192,1.49955421,1638.2,1638.1,14.3290158]
[1693940801393,1.49955421,1638.2,1638.1,8.2243858]
[1693940805821,1.49955421,1638.2,1638.1,14.3290158]
[1693940815430,1.49955421,1638.2,1638.1,24.34125133]
[1693940815627,1.49955421,1638.2,1638.1,33.36927724]
[1693940817137,1.49955421,1638.2,1638.1,38.36927724]
[1693940817300,1.49955421,1638.2,1638.1,40.49124064]
[1693940818601,1.49955421,1638.2,1638.1,33.05473047]
[1693940818801,1.49955421,1638.2,1638.1,30.93276707]
[1693940821148,1.49955421,1638.2,1638.1,31.4229829]
[1693940828832,1.49955421,1638.2,1638.1,25.3183529]
[1693940835561,1.49955421,1638.2,1638.1,20.3183529]
[1693940837365,1.49955421,1638.2,1638.1,18.05135178]
[1693940845572,1.49955421,1638.2,1638.1,23.05135178]
[1693940859090,1.49955421,1638.2,1638.1,24.32926453]
[1693940860608,1.49955421,1638.2,1638.1,23.37088185]
[1693940870328,1.49955421,1638.2,1638.1,29.47551185]
[1693940870572,1.49955421,1638.2,1638.1,37.5946102]
[1693940870729,1.49955421,1638.2,1638.1,39.7165736]
[1693940871219,2.13610009,1638.2,1638.1,39.7165736]
[1693940872729,2.13610009,1638.2,1638.1,38.11635854]
[1693940873829,2.13610009,1638.2,1638.1,41.43866085]
[1693940874030,1.49960754,1638.2,1638.1,41.43866085]
[1693940876124,1.44960754,1638.2,1638.1,41.43866085]
[1693940877345,0.31812075,1638.2,1638.1,45.94307579]
[1693940877522,0.31812075,1638.2,1638.1,47.86333386]
[1693940877714,0.31812075,1638.2,1638.1,45.94307579]
[1693940878148,32.3532,1638.7,1638.1,45.94307579]
[1693940878347,2.13575965,1638.5,1638.4,0.63947114]
[1693940878544,2.13575965,1638.5,1638.4,25.27100114]
[1693940878715,2.13575965,1638.5,1638.4,27.92352737]
[1693940885546,2.13575965,1638.5,1638.4,27.28405623]
[1693940886171,2.13575965,1638.5,1638.4,27.92352737]
[1693940886368,2.13575965,1638.5,1638.4,31.3753964]
[1693940889640,2.13575965,1638.5,1638.4,31.77034666]
[1693940890344,2.13575965,1638.5,1638.4,31.95504661]
[1693940891380,2.13575965,1638.5,1638.4,32.87799667]
[1693940891671,2.13575965,1638.5,1638.4,32.23852553]
[1693940892568,2.13575965,1638.5,1638.4,32.73690075]
[1693940893469,2.13575965,1638.5,1638.4,29.28503172]
[1693940893675,1.9232,1638.7,1638.4,29.28503172]
[1693940893874,1.9232,1638.7,1638.4,24.49651927]
[1693940894181,1.9232,1638.7,1638.4,22.36064759]
[1693940894754,2.13567952,1638.5,1638.4,22.36064759]
[1693940895074,2.13567952,1638.5,1638.4,25.01247999]
[1693940907280,2.13567952,1638.5,1638.4,23.90482998]
[1693940907597,2.13567952,1638.5,1638.4,30.34471327]
[1693940907797,2.13567952,1638.5,1638.4,30.98418441]
[1693940915320,30.43,1638.9,1638.5,2.45227854]
[1693940915660,2.1415,1639.0,1638.8,1.321]
[1693940915661,4.27655765,1639.0,1638.8,1.321]
[1693940915912,4.27655765,1639.0,1638.9,13.5243]
[1693940916279,2.13505765,1639.0,1638.9,13.5243]
[1693940916480,2.13505765,1639.0,1638.9,19.62595]
[1693940919726,2.13505765,1639.0,1638.9,20.01934718]
[1693940920809,2.13505765,1639.0,1638.9,26.78716917]
[1693940921129,2.13505765,1639.0,1638.9,28.37795899]
[1693940921637,2.13505765,1639.0,1638.9,29.3355873]
[1693940921800,2.13505765,1639.0,1638.9,32.3355873]
[1693940922006,2.13505765,1639.0,1638.9,34.45663066]
[1693940922205,2.13505765,1639.0,1638.9,36.37795899]
[1693940922629,2.13505765,1639.0,1638.9,37.3355873]
[1693940922834,2.13505765,1639.0,1638.9,39.4563742]
[1693940923523,2.13505765,1639.0,1638.9,36.37795899]
[1693940924434,2.13505765,1639.0,1638.9,39.45638084]
[1693940924637,2.13505765,1639.0,1638.9,36.37795899]
[1693940925303,2.13505765,1639.0,1638.9,39.45638343]
[1693940925729,2.13505765,1639.0,1638.9,36.37795899]
[1693940926729,2.13505765,1639.0,1638.9,45.3995841]
[1693940926928,2.13505765,1639.0,1638.9,46.67642184]
[1693940927135,2.13505765,1639.0,1638.9,45.71879353]
[1693940927334,32.4969,1639.4,1639.0,1.321]
[1693940927541,2.0669,1639.4,1639.3,1.321]
[1693940927854,0.81379719,1639.2,1639.1,9.16784426]
[1693940928150,0.81379719,1639.2,1639.1,17.65006829]
[1693940928309,0.81379719,1639.2,1639.1,19.24055434]
[1693940928504,0.81379719,1639.2,1639.1,36.44235434]
[1693940928705,0.81379719,1639.2,1639.1,40.45193155]
[1693940928935,0.81379719,1639.2,1639.1,49.55283155]
[1693940929112,0.81379719,1639.2,1639.1,51.99168733]
[1693940929721,0.101,1639.4,1639.1,55.7934628]
[1693940929922,0.101,1639.4,1639.3,4.88803774]
[1693940930151,0.101,1639.4,1639.3,38.20923428]
[1693940930338,0.101,1639.4,1639.3,41.92022202]
[1693940930533,0.101,1639.4,1639.3,46.92022202]
[1693940931253,0.101,1639.4,1639.3,45.24122202]
[1693940931418,0.101,1639.4,1639.3,48.24122202]
[1693940933842,0.101,1639.4,1639.3,45.24122202]
[1693940934044,0.101,1639.4,1639.3,48.24122202]
[1693940934472,0.101,1639.6,1639.4,0.8132]
[1693940934670,0.101,1639.6,1639.5,23.06021933]
[1693940934874,0.101,1639.6,1639.5,24.65070538]
[1693940935075,0.101,1639.6,1639.5,27.65070538]
[1693940935252,2.0161,1639.7,1639.5,27.65070538]
[1693940935457,2.0161,1639.7,1639.6,1.06032403]
[1693940935642,2.1715,1639.8,1639.6,24.35744403]
[1693940935845,2.1715,1639.8,1639.6,23.29712]
[1693940937376,2.80403552,1639.8,1639.6,12.19808]
[1693940937567,2.80403552,1639.8,1639.6,18.29712]
[1693940938367,2.80403552,1639.8,1639.6,19.88724002]
[1693940938967,2.80403552,1639.8,1639.6,21.20824002]
[1693940938968,2.1715,1639.8,1639.6,21.20824002]
[1693940940148,2.1715,1639.8,1639.6,19.61812]
[1693940944969,2.1715,1639.8,1639.6,21.20824468]
[1693940945169,2.1715,1639.8,1639.6,19.61812]
[1693940945548,2.1715,1639.8,1639.6,13.51908]
[1693940947748,2.80403552,1639.8,1639.6,13.51908]
[1693940949878,2.80403552,1639.8,1639.7,0.37972994]
[1693940950195,2.80403552,1639.8,1639.7,6.47839994]
[1693940950486,0.63253552,1639.8,1639.7,6.09867]
[1693940953847,0.63253552,1639.8,1639.7,7.15876083]
[1693940954189,0.63253552,1639.8,1639.7,6.09867]
[1693940954370,0.63253552,1639.8,1639.7,7.15877779]
[1693940955267,5.39476853,1639.9,1639.8,0.63253552]
[1693940956456,5.39476853,1639.9,1639.7,6.09867]
[1693940957257,17.59068853,1639.9,1639.6,0.63462104]
[1693940957475,17.59068853,1639.9,1639.6,1.69472473]
[1693940957675,1.75906885,1639.8,1639.6,7.79375473]
[1693940957881,1.07404265,1639.7,1639.6,6.73365104]
[1693940958281,1.07404265,1639.7,1639.6,0.63462104]
[1693940958480,1.07404265,1639.7,1639.6,6.73366104]
[1693940959352,1.07404265,1639.7,1639.6,0.63462104]
[1693940959558,8.2650388,1639.7,1639.6,0.63462104]
[1693940959754,8.2650388,1639.7,1639.5,1.58655261]
[1693940959990,14.3637088,1639.7,1639.5,0.63462104]
[1693940960199,13.28966615,1639.7,1639.5,0.63462104]
[1693940960361,7.42800662,1639.6,1639.4,0.72885354]
[1693940960556,13.52704662,1639.6,1639.4,0.72885354]
[1693940960755,1.40568327,1639.4,1639.2,7.69579755]
[1693940960989,1.40568327,1639.4,1639.3,5.0]
[1693940961570,1.40568327,1639.4,1639.2,7.69573755]
[1693940961766,3.1916656,1639.4,1639.2,7.69573755]
[1693940964789,3.1916656,1639.4,1639.2,6.10037]
[1693940965101,3.1916656,1639.4,1639.3,0.38101209]
[1693940967997,9.2914556,1639.4,1639.3,0.38101209]
[1693940968508,9.2914556,1639.4,1639.2,1.2740167]
[1693940968677,0.92914556,1639.3,1639.2,1.2740167]
[1693940969508,0.92914556,1639.3,1639.1,9.4532313]
[1693940969692,2.81724556,1639.3,1639.2,0.95563913]
[1693940970297,2.81724556,1639.3,1639.2,7.05616913]
[1693940971407,2.81724556,1639.3,1639.2,7.69331852]
[1693940972408,2.81724556,1639.3,1639.2,6.73767939]
[1693940974405,2.81724556,1639.3,1639.2,6.10053]
[1693940978119,2.81724556,1639.3,1639.2,7.16084944]
[1693940978689,1.40568327,1639.4,1639.1,12.20142]
[1693940978890,1.40568327,1639.4,1639.2,6.10053]
[1693940979119,1.40568327,1639.4,1639.1,6.10063]
[1693940979301,3.29428327,1639.4,1639.1,6.10063]
[1693940979502,3.29428327,1639.4,1639.2,0.38109972]
[1693940979818,0.32942833,1639.3,1639.2,6.48160972]
[1693940980024,0.32942833,1639.3,1639.2,0.38109972]
[1693940983525,0.32942833,1639.3,1639.0,13.32730882]
[1693940983733,2.13479719,1639.2,1639.1,1.06033395]
[1693940984527,2.13479719,1639.2,1639.1,7.16123395]
[1693940986735,2.13479719,1639.2,1639.1,6.1009]
[1693940988504,2.13479719,1639.2,1639.1,7.16125345]
[1693940988709,2.13479719,1639.2,1639.1,6.1009]
[1693940989806,2.13479719,1639.2,1639.1,7.16125365]
[1693940990129,2.13479719,1639.2,1639.1,6.1009]
[1693940992439,2.13479719,1639.2,1639.1,7.16125343]
[1693940992740,2.13479719,1639.2,1639.1,6.1009]
[1693940992940,2.13479719,1639.2,1639.1,7.16126527]
[1693940993518,2.13479719,1639.2,1639.1,6.1009]
[1693940993718,2.57976974,1639.2,1639.1,6.1009]
[1693940993910,2.57976974,1639.2,1639.1,7.16126967]
[1693940994333,2.57976974,1639.2,1639.1,6.1009]
[1693940994712,2.57976974,1639.2,1639.1,6.48193174]
[1693940997750,2.57976974,1639.2,1639.1,7.54231636]
[1693940998548,2.57976974,1639.2,1639.1,6.48193174]
[1693940998847,2.57976974,1639.2,1639.1,7.54231588]
[1693940999652,2.57976974,1639.2,1639.1,1.44141588]
[1693940999942,2.57976974,1639.2,1639.1,0.38103174]
[1693941003949,8.68029974,1639.2,1639.1,0.38103174]
[1693941004137,8.68029974,1639.2,1639.1,1.0604245]
[1693941004741,8.68029974,1639.2,1639.0,1.69757389]
[1693941005015,10.70939974,1639.2,1639.1,1.0604245]
[1693941005525,10.70939974,1639.2,1639.0,1.69757389]
[1693941005725,10.70939974,1639.2,1639.1,1.0604245]
[1693941006942,10.70939974,1639.2,1639.0,1.69757389]
[1693941007121,10.70939974,1639.2,1639.1,1.0604245]
[1693941007329,16.80992974,1639.2,1638.9,0.63714939]
[1693941007516,16.80992974,1639.2,1638.9,1.69763139]
[1693941008614,16.80992974,1639.2,1638.9,7.79928139]
[1693941008926,1.68099297,1639.1,1639.0,1.060482]
[1693941009134,7.78189297,1639.1,1639.0,1.060482]
[1693941009332,7.78189297,1639.1,1638.9,1.69763139]
[1693941009554,7.78189297,1639.1,1639.0,1.060482]
[1693941010071,7.78189297,1639.1,1639.0,0.36639924]
[1693941010474,24.85170723,1639.1,1639.0,0.36639924]
[1693941010676,2.1351879,1638.9,1638.6,0.63714939]
[1693941010971,6.10202,1638.8,1638.6,0.63714939]
[1693941011144,6.10202,1638.8,1638.6,1.69780464]
[1693941011350,2.13544844,1638.7,1638.6,1.69780464]
[1693941011549,2.13544844,1638.7,1638.6,1.06065525]
[1693941012568,2.13544844,1638.7,1638.6,7.16342525]
[1693941013166,2.13544844,1638.7,1638.6,8.75397316]
[1693941013370,2.13544844,1638.7,1638.6,7.16342525]
[1693941015965,2.13544844,1638.7,1638.6,21.8655229]
[1693941016150,1.49912328,1638.7,1638.6,28.16257481]
[1693941016351,1.49912328,1638.7,1638.6,32.09140353]
[1693941016352,0.36793438,1638.7,1638.6,32.09140353]
[1693941016561,0.36793438,1638.7,1638.6,34.21162099]
[1693941017269,2.13505765,1639.0,1638.6,40.16778482]
[1693941017469,2.13505765,1639.0,1638.7,10.3724397]
[1693941017653,2.13505765,1639.0,1638.8,19.36671525]
[1693941017980,2.13505765,1639.0,1638.8,21.21760791]
[1693941023389,2.13505765,1639.0,1638.8,15.11558791]
[1693941024804,2.13505765,1639.0,1638.9,0.36642956]
[1693941025174,2.13505765,1639.0,1638.8,15.11558791]
[1693941025377,2.13505765,1639.0,1638.8,10.60500636]
[1693941032811,2.13505765,1639.0,1638.9,0.00411481]
[1693941033809,2.13505765,1639.0,1638.8,9.01356791]
[1693941034816,8.23637765,1639.0,1638.9,0.00411481]
[1693941035594,8.23637765,1639.0,1638.8,1.06048897]
[1693941035794,10.12587765,1639.0,1638.8,1.06048897]
[1693941036716,10.12587765,1639.0,1638.9,0.00411481]
[1693941037816,10.12587765,1639.0,1638.8,7.16249897]
[1693941038020,10.12587765,1639.0,1638.8,6.10201]
[1693941038719,10.12587765,1639.0,1638.9,0.00411481]
[1693941039597,11.74856142,1639.0,1638.8,1.06048821]
[1693941039806,10.12587765,1639.0,1638.9,0.96090118]
[1693941040125,10.12587765,1639.0,1638.7,19.34864676]
[1693941040321,10.12587765,1639.0,1638.7,13.24641676]
[1693941040514,10.12587765,1639.0,1638.8,1.06049243]
[1693941040710,10.12587765,1639.0,1638.8,1.06461553]
[1693941042214,10.12587765,1639.0,1638.8,7.16659553]
[1693941042419,10.12587765,1639.0,1638.8,6.1061031]
[1693941042724,4.02455765,1639.0,1638.8,6.1061031]
[1693941043023,4.02455765,1639.0,1638.8,12.2081231]
[1693941043224,4.02455765,1639.0,1638.8,16.344117]
[1693941044596,2.13505765,1639.0,1638.8,16.344117]
[1693941050500,2.13505765,1639.0,1638.9,1.06048937]
[1693941050861,2.13505765,1639.0,1638.9,7.16213937]
[1693941051733,2.13505765,1639.0,1638.9,7.16625418]
[1693941054849,2.13505765,1639.0,1638.9,8.12715536]
[1693941057849,8.64223342,1639.0,1638.9,2.02550536]
[1693941058151,8.64223342,1639.0,1638.9,0.96501599]
[1693941059526,8.64223342,1639.0,1638.9,2.02554476]
[1693941063371,2.54095342,1639.0,1638.9,2.02554476]
[1693941066533,2.13505765,1639.0,1638.9,2.02554476]
[1693941066739,2.13505765,1639.0,1638.9,8.12719476]
[1693941067573,2.13505765,1639.0,1638.9,8.76463856]
[1693941067750,2.13505765,1639.0,1638.9,14.86628856]
[1693941071881,2.13505765,1639.0,1638.9,2.66298856]
[1693941072184,2.13505765,1639.0,1638.9,14.86628856]
[1693941075187,2.13505765,1639.0,1638.9,8.76463856]
[1693941076907,2.13505765,1639.0,1638.9,2.02554476]
[1693941077054,3.14781742,1639.0,1638.9,2.02554476]
[1693941081374,2.13505765,1639.0,1638.9,2.02554476]
[1693941099339,2.13505765,1639.0,1638.9,2.02558302]
[1693941099340,8.23633765,1639.0,1638.9,2.02558302]
[1693941099485,2.13505765,1639.0,1638.9,2.02558302]
[1693941103848,2.13505765,1639.0,1638.9,0.96501599]
[1693941136654,14.33761765,1639.0,1638.9,0.96501599]
[1693941136861,17.05647742,1639.0,1638.9,0.96501599]
[1693941139066,26.22477168,1639.0,1638.9,0.96501599]
[1693941139643,24.08971403,1639.0,1638.9,0.96501599]
[1693941139843,24.08971403,1639.0,1638.7,1.92956755]